bitfinex/quotes_SOLUSD_20250228
["timestamp","ask_amount","ask_price","bid_price","bid_amount"]
[1740725323310,1.25216361,127.56,127.5,20.0]
[1740725323496,20.14216157,127.55,127.47,136.5]
[1740725323698,19.90181247,127.54,127.46,1.43462374]
[1740725323885,18.64964886,127.5,127.37,25.8577]
[1740725324086,18.64964886,127.48,127.37,145.78673745]
[1740725324388,1.25216361,127.47,127.37,9.28663745]
[1740725324586,1.25216361,127.48,127.4,20.0]
[1740725324787,18.79181043,127.46,127.38,1.43552475]
[1740725324992,0.14216157,127.43,127.32,218.1]
[1740725325187,1.25216361,127.42,127.35,20.0]
[1740725325396,100.67529686,127.41,127.3,136.5]
[1740725325603,18.64964886,127.39,127.29,105.25221251]
[1740725325788,0.14216157,127.36,127.24,139.5637]
[1740725325993,63.75281221,127.38,127.24,5.0637]
[1740725326188,63.75281221,127.38,127.28,20.0]
[1740725326400,63.75281221,127.43,127.3,20.0]
[1740725326615,20.0,127.39,127.3,20.0]
[1740725326913,83.75281221,127.38,127.25,1.43699129]
[1740725327095,63.75281221,127.37,127.27,20.0]
[1740725327601,63.75281221,127.43,127.27,156.5]
[1740725327801,20.0,127.39,127.3,0.14216157]
[1740725328008,0.14216157,127.38,127.31,20.0]
[1740725328198,18.79181043,127.38,127.28,136.5]
[1740725328518,63.75281221,127.37,127.25,1.43699129]
[1740725328811,20.0,127.34,127.25,1.43699129]
[1740725329121,63.75281221,127.37,127.27,0.14216157]
[1740725329416,20.0,127.4,127.26,0.14216157]
[1740725329588,20.0,127.36,127.25,9.29539129]
[1740725329930,20.0,127.34,127.25,1.43699129]
[1740725330089,20.0,127.36,127.26,38.79181043]
[1740725330293,20.0,127.36,127.26,18.79181043]
[1740725330496,20.0,127.31,127.21,6.11]
[1740725330697,0.14216157,127.29,127.21,6.11]
[1740725330900,63.89497378,127.29,127.21,6.11]
[1740725331101,0.14216157,127.27,127.17,81.6]
[1740725331301,0.14216157,127.27,127.16,139.5857]
[1740725331302,63.89497378,127.27,127.16,139.5857]
[1740725331502,63.75281221,127.27,127.19,20.0]
[1740725331828,20.0,127.24,127.17,1.43789528]
[1740725331998,63.75281221,127.25,127.13,7.8659]
[1740725332189,0.14216157,127.3,127.16,22.0]
[1740725332394,63.75281221,127.32,127.21,20.0]
[1740725332589,63.75281221,127.32,127.22,0.14216157]
[1740725332900,63.75281221,127.32,127.22,18.79181043]
[1740725333102,132.36,127.34,127.26,18.64964886]
[1740725333302,63.75281221,127.39,127.29,20.0]
[1740725333517,63.75281221,127.39,127.3,18.64964886]
[1740725333717,63.75281221,127.39,127.31,0.14216157]
[1740725333907,132.4,127.41,127.34,18.64964886]
[1740725334223,63.75281221,127.44,127.35,20.0]
[1740725334415,20.0,127.41,127.3,136.5]
[1740725334716,63.75281221,127.44,127.33,18.79181043]
[1740725334906,18.79181043,127.43,127.33,18.64964886]
[1740725335104,20.0,127.4,127.31,18.64964886]
[1740725335312,63.75281221,127.42,127.32,0.14216157]
[1740725335513,63.75281221,127.47,127.35,18.79181043]
[1740725335695,63.75281221,127.46,127.35,18.64964886]
[1740725336013,0.14216157,127.41,127.28,144.3565]
[1740725336217,0.14216157,127.39,127.3,18.64964886]
[1740725336392,18.79181043,127.4,127.3,18.64964886]
[1740725336589,0.14216157,127.37,127.25,136.5]
[1740725336809,0.14216157,127.37,127.25,7.858]
[1740725337000,0.14216157,127.35,127.26,87.614]
[1740725337204,63.75281221,127.36,127.26,87.614]
[1740725337403,0.14216157,127.35,127.26,87.614]
[1740725337605,18.79181043,127.35,127.26,81.6]
[1740725337904,18.79181043,127.35,127.25,20.0]
[1740725337905,0.14216157,127.33,127.25,20.0]
[1740725338097,63.75281221,127.32,127.23,18.64964886]
[1740725338619,63.75281221,127.32,127.27,18.64964886]
[1740725338826,63.75281221,127.32,127.23,219.53721718]
[1740725339506,0.14216157,127.37,127.26,20.0]
[1740725339698,63.75281221,127.36,127.28,20.0]
[1740725340106,0.14216157,127.35,127.28,20.0]
[1740725340305,18.79181043,127.33,127.23,1.43721718]
[1740725340517,0.14216157,127.31,127.23,1.43721718]
[1740725340815,63.75281221,127.32,127.22,81.6]
[1740725341021,63.75281221,127.37,127.28,18.64964886]
[1740725341193,63.75281221,127.37,127.27,20.0]
[1740725341398,63.75281221,127.37,127.23,1.43721718]
[1740725341595,63.75281221,127.36,127.26,20.0]
[1740725341806,0.14216157,127.34,127.23,83.03721718]
[1740725342005,0.14216157,127.32,127.23,83.03721718]
[1740725342321,0.14216157,127.3,127.23,1.43721718]
[1740725342525,0.14216157,127.28,127.18,89.4624]
[1740725342725,0.14216157,127.25,127.17,0.063]
[1740725342905,20.0,127.21,127.17,0.063]
[1740725343100,63.75281221,127.2,127.17,0.063]
[1740725343604,0.14216157,127.19,127.17,0.063]
[1740725343809,20.0,127.15,127.12,0.063]
[1740725344011,0.14216157,127.16,127.12,0.063]
[1740725344218,0.14216157,127.14,127.12,0.063]
[1740725344419,63.75281221,127.15,127.13,20.0]
[1740725344735,132.44,127.19,127.13,20.0]
[1740725344908,196.19281221,127.19,127.13,20.0]
[1740725345236,18.79181043,127.14,127.1,23.65221251]
[1740725345401,0.14216157,127.11,127.1,23.65221251]
[1740725345722,0.14216157,127.11,127.06,0.063]
[1740725345926,0.14216157,127.09,127.06,0.063]
[1740725346116,82.8,127.1,127.06,0.063]
[1740725346425,82.8,127.15,127.06,0.063]
[1740725346623,132.44,127.19,127.1,38.64964886]
[1740725346828,9.64262074,127.29,127.1,38.64964886]
[1740725346829,132.5,127.26,127.1,38.64964886]
[1740725347123,0.14216157,127.19,127.1,20.0]
[1740725347304,82.8,127.18,127.06,0.063]
[1740725347509,82.94216157,127.17,127.06,0.063]
[1740725347735,82.94216157,127.17,127.1,0.063]
[1740725347907,82.8,127.16,127.1,0.063]
[1740725348419,18.79181043,127.15,127.1,0.063]
[1740725348722,0.14216157,127.15,127.1,20.063]
[1740725348922,82.8,127.16,127.1,20.063]
[1740725349124,82.8,127.16,127.1,0.063]
[1740725349334,82.8,127.23,127.1,0.063]
[1740725349510,82.8,127.22,127.11,20.0]
[1740725349707,82.8,127.21,127.13,20.0]
[1740725350104,18.79181043,127.18,127.1,0.063]
[1740725350325,20.79181043,127.16,127.1,0.063]
[1740725350528,20.79181043,127.14,127.1,0.063]
[1740725350823,18.79181043,127.12,127.1,0.063]
[1740725351223,132.56,127.16,127.1,0.063]
[1740725351224,82.8,127.11,127.1,0.063]
[1740725352801,0.14216157,127.11,127.1,0.063]
[1740725353009,0.14216157,127.11,127.06,0.063]
[1740725353223,0.14216157,127.1,127.06,0.063]
[1740725353524,136.45523077,127.16,127.07,20.0]
[1740725353726,0.14216157,127.15,127.09,20.0]
[1740725353927,0.14216157,127.15,127.06,7.9332]
[1740725354107,132.56,127.16,127.09,20.0]
[1740725354312,2.0,127.22,127.13,20.0]
[1740725354513,18.79181043,127.21,127.13,20.0]
[1740725354717,22.64964886,127.19,127.07,7.8696]
[1740725355029,2.0,127.22,127.07,0.14216157]
[1740725355235,4.0,127.22,127.09,20.0]
[1740725355423,2.0,127.19,127.09,20.0]
[1740725355734,2.0,127.22,127.07,6.1434]
[1740725355934,134.64,127.23,127.08,0.14216157]
[1740725356140,132.64,127.23,127.11,20.0]
[1740725356310,20.0,127.2,127.07,6.1434]
[1740725356505,18.79181043,127.17,127.06,0.063]
[1740725356714,18.79181043,127.15,127.06,0.063]
[1740725357119,82.8,127.14,127.06,0.063]
[1740725357330,82.8,127.13,127.06,20.063]
[1740725357839,82.8,127.17,127.1,20.0]
[1740725358039,82.8,127.22,127.1,20.0]
[1740725358241,82.8,127.21,127.1,20.0]
[1740725358429,82.8,127.21,127.06,0.20516157]
[1740725358629,84.8,127.2,127.08,20.0]
[1740725358940,0.14216157,127.17,127.06,0.063]
[1740725359119,18.79181043,127.15,127.06,0.063]
[1740725359516,82.8,127.14,127.09,20.0]
[1740725360017,18.79181043,127.19,127.09,20.0]
[1740725360219,0.14216157,127.17,127.09,20.0]
[1740725360419,82.8,127.18,127.13,20.0]
[1740725360619,82.8,127.17,127.13,20.0]
[1740725361138,82.8,127.26,127.18,20.0]
[1740725361326,132.66,127.31,127.18,20.0]
[1740725361327,82.8,127.3,127.18,20.0]
[1740725361531,132.66,127.31,127.19,0.14216157]
[1740725361925,132.66,127.31,127.18,20.0]
[1740725362129,82.8,127.3,127.19,0.14216157]
[1740725362328,82.8,127.33,127.24,20.0]
[1740725362525,82.8,127.33,127.24,27.8585]
[1740725362931,82.8,127.32,127.17,218.1]
[1740725363125,82.8,127.31,127.17,81.6]
[1740725363340,101.59181043,127.3,127.18,18.64964886]
[1740725363538,101.59181043,127.3,127.16,136.5]
[1740725363738,103.59181043,127.3,127.16,136.5]
[1740725364042,82.8,127.29,127.16,218.1]
[1740725364224,82.8,127.34,127.24,20.0]
[1740725364425,82.8,127.33,127.24,27.8591]
[1740725364621,18.79181043,127.32,127.24,20.0]
[1740725365229,18.79181043,127.3,127.17,81.6]
[1740725365430,82.8,127.29,127.18,0.14216157]
[1740725365642,0.14216157,127.28,127.21,20.0]
[1740725365956,82.8,127.34,127.22,18.79181043]
[1740725366125,82.8,127.33,127.24,18.79181043]
[1740725366331,0.03,127.35,127.31,20.0]
[1740725366823,0.03,127.35,127.34,18.64964886]
[1740725367028,0.03,127.38,127.35,0.14216157]
[1740725367230,0.03,127.38,127.37,38.79181043]
[1740725367448,0.03,127.38,127.37,38.64964886]
[1740725367747,0.03,127.47,127.41,20.0]
[1740725367980,0.03,127.47,127.43,20.0]
[1740725368248,0.03,127.47,127.46,20.0]
[1740725368625,0.03,127.47,127.39,7.8493]
[1740725368853,0.03,127.47,127.43,18.79181043]
[1740725369154,0.03,127.47,127.46,20.0]
[1740725369329,0.03,127.47,127.46,38.79181043]
[1740725369865,0.03,127.48,127.47,18.79181043]
[1740725370350,0.03,127.48,127.47,20.22632163]
[1740725370558,0.03,127.48,127.47,28.07122163]
[1740725370730,0.03,127.48,127.47,1.4345112]
[1740725370929,0.03,127.48,127.44,144.3467]
[1740725371130,0.03,127.48,127.45,0.14216157]
[1740725371549,132.6,127.61,127.47,20.0]
[1740725371550,135.76044759,127.61,127.47,20.0]
[1740725371753,133.76044759,127.61,127.47,20.0]
[1740725371959,131.76044759,127.61,127.47,20.0]
[1740725372164,2.14216157,127.58,127.44,1.43484889]
[1740725372342,0.14216157,127.56,127.42,136.5]
[1740725372540,0.14216157,127.56,127.46,20.0]
[1740725372746,82.8,127.6,127.46,20.0]
[1740725372747,7.97976157,127.59,127.47,18.64964886]
[1740725372946,0.14216157,127.59,127.52,20.0]
[1740725373137,82.8,127.58,127.52,20.0]
[1740725373764,0.14216157,127.56,127.47,81.6]
[1740725374060,82.8,127.56,127.47,81.6]
[1740725374259,82.8,127.56,127.51,20.0]
[1740725374450,82.8,127.55,127.51,20.0]
[1740725375468,82.8,127.55,127.47,81.6]
[1740725375664,82.8,127.55,127.45,89.4461]
[1740725375853,82.8,127.55,127.49,20.0]
[1740725376360,82.8,127.55,127.46,18.64964886]
[1740725376574,82.8,127.59,127.5,18.64964886]
[1740725376775,82.8,127.59,127.53,20.0]
[1740725377634,131.66044759,127.61,127.57,20.0]
[1740725378241,82.94216157,127.6,127.5,224.5328]
[1740725378456,0.14216157,127.58,127.5,6.4328]
[1740725378661,7.98056157,127.58,127.47,219.5345112]
[1740725378873,0.14216157,127.56,127.47,83.0345112]
[1740725379041,18.79181043,127.56,127.47,81.6]
[1740725379359,18.79181043,127.56,127.5,20.0]
[1740725379557,82.8,127.55,127.5,20.0]
[1740725379940,82.8,127.58,127.54,20.0]
[1740725380449,82.8,127.58,127.5,38.64964886]
[1740725380772,82.8,127.57,127.5,38.64964886]
[1740725381142,0.14216157,127.56,127.5,20.0]
[1740725381355,0.14216157,127.56,127.47,218.1]
[1740725381356,82.8,127.55,127.47,81.6]
[1740725381764,0.14216157,127.54,127.47,81.6]
[1740725382071,82.78,127.53,127.46,18.64964886]
[1740725382256,82.78,127.53,127.49,20.0]
[1740725382646,82.92216157,127.52,127.45,6.2135]
[1740725382848,82.78,127.51,127.4,81.6]
[1740725383172,0.14216157,127.49,127.4,81.6]
[1740725383365,18.79181043,127.49,127.38,224.1816]
[1740725383565,132.3,127.51,127.38,224.1816]
[1740725383566,0.14216157,127.47,127.38,6.0816]
[1740725383751,0.14216157,127.45,127.35,84.8388]
[1740725383955,0.14216157,127.43,127.35,3.2388]
[1740725384353,0.14216157,127.41,127.34,81.663]
[1740725384573,0.14216157,127.39,127.34,0.063]
[1740725384942,82.78,127.38,127.34,0.063]
[1740725385567,82.92216157,127.37,127.34,0.063]
[1740725385762,82.78,127.36,127.34,0.063]
[1740725386668,82.92216157,127.35,127.34,0.063]
[1740725386874,18.79181043,127.35,127.34,0.063]
[1740725387671,0.14216157,127.36,127.34,0.063]
[1740725387964,132.32,127.41,127.34,0.063]
[1740725388156,0.14216157,127.4,127.34,0.063]
[1740725388547,132.32,127.41,127.34,0.063]
[1740725388749,18.79181043,127.4,127.34,0.063]
[1740725388962,20.0,127.37,127.34,0.063]
[1740725389145,18.79181043,127.36,127.34,0.063]
[1740725390074,18.79181043,127.36,127.21,229.1515]
[1740725390282,18.79181043,127.36,127.22,18.64964886]
[1740725390584,18.79181043,127.32,127.21,11.0515]
[1740725390771,0.14216157,127.32,127.21,11.0515]
[1740725390968,0.14216157,127.32,127.22,18.64964886]
[1740725391176,0.14216157,127.37,127.25,20.0]
[1740725391353,18.79181043,127.32,127.22,18.64964886]
[1740725391687,18.79181043,127.3,127.21,3.1907]
[1740725391970,18.79181043,127.28,127.21,0.063]
[1740725392146,82.8,127.27,127.21,0.063]
[1740725392354,0.14216157,127.22,127.21,0.063]
[1740725392548,18.79181043,127.2,127.11,6.2217]
[1740725392755,0.14216157,127.18,127.11,6.2217]
[1740725393076,82.8,127.17,127.11,6.2217]
[1740725393253,0.14216157,127.16,127.11,14.0888]
[1740725393568,82.8,127.17,127.12,18.64964886]
[1740725393875,132.4,127.2,127.15,20.0]
[1740725394961,132.4,127.2,127.16,20.0]
[1740725395155,0.14216157,127.19,127.16,20.0]
[1740725395378,0.14216157,127.19,127.15,20.0]
[1740725395546,0.14216157,127.17,127.11,14.0888]
[1740725395743,82.8,127.18,127.11,7.8671]
[1740725395958,0.14216157,127.17,127.09,7.8684]
[1740725396162,0.14216157,127.17,127.12,20.0]
[1740725396567,0.14216157,127.15,127.08,29.79054886]
[1740725396755,0.14216157,127.15,127.11,20.0]
[1740725397372,0.14216157,127.15,127.08,7.8689]
[1740725397550,0.14216157,127.18,127.09,18.64964886]
[1740725397755,82.8,127.19,127.16,20.0]
[1740725398469,82.8,127.26,127.2,20.0]
[1740725398771,18.64964886,127.27,127.16,7.8641]
[1740725398956,132.52,127.28,127.21,20.0]
[1740725399288,82.8,127.27,127.21,20.0]
[1740725400572,132.52,127.28,127.21,20.0]
[1740725400866,132.54,127.35,127.25,20.0]
[1740725401288,132.54,127.35,127.29,20.0]
[1740725401483,18.79181043,127.33,127.22,218.1]
[1740725401653,18.79181043,127.31,127.17,87.7771]
[1740725401854,18.79181043,127.31,127.18,0.14216157]
[1740725402055,18.79181043,127.31,127.18,18.64964886]
[1740725402383,82.8,127.32,127.19,0.14216157]
[1740725402671,18.79181043,127.31,127.21,20.0]
[1740725402873,101.59181043,127.31,127.2,18.64964886]
[1740725403172,82.8,127.3,127.23,20.0]
[1740725403368,82.94216157,127.29,127.23,20.0]
[1740725403583,0.14216157,127.27,127.18,81.6]
[1740725403883,0.14216157,127.25,127.13,3.2345]
[1740725404082,82.8,127.24,127.16,20.0]
[1740725404285,82.8,127.24,127.18,20.0]
[1740725404583,0.14216157,127.22,127.15,0.063]
[1740725404788,0.14216157,127.2,127.15,0.063]
[1740725404987,0.14216157,127.18,127.15,0.063]
[1740725405155,0.14216157,127.16,127.15,0.063]
[1740725405551,18.64964886,127.2,127.15,0.063]
[1740725405552,0.14216157,127.18,127.15,0.063]
[1740725406272,0.14216157,127.2,127.15,0.063]
[1740725406652,18.79181043,127.22,127.15,0.063]
[1740725406857,0.14216157,127.22,127.15,0.063]
[1740725407274,18.79181043,127.19,127.15,0.063]
[1740725407664,18.79181043,127.17,127.15,0.063]
[1740725408169,136.43449691,127.25,127.15,0.063]
[1740725408369,132.52,127.25,127.15,0.063]
[1740725408886,18.79181043,127.22,127.15,0.063]
[1740725409095,20.64964886,127.22,127.15,0.063]
[1740725409287,18.79181043,127.18,127.15,0.063]
[1740725409579,18.79181043,127.16,127.15,0.063]
[1740725409785,18.79181043,127.16,127.06,0.063]
[1740725409984,18.79181043,127.14,127.07,20.0]
[1740725410193,18.79181043,127.12,127.06,0.063]
[1740725410366,82.8,127.11,127.06,0.063]
[1740725410700,82.94216157,127.1,127.06,0.063]
[1740725410984,82.8,127.1,127.07,20.0]
[1740725411190,82.8,127.1,127.06,0.063]
[1740725411371,0.14216157,127.09,127.06,0.063]
[1740725411692,82.94216157,127.08,127.06,0.063]
[1740725411893,82.94216157,127.07,127.06,0.063]
[1740725412193,0.14216157,127.07,127.06,0.063]
[1740725412695,20.0,127.11,127.06,0.063]
[1740725413479,20.0,127.11,127.04,0.063]
[1740725413682,19.668,127.11,127.04,0.063]
[1740725413883,27.8665,127.12,127.04,0.063]
[1740725414183,3.96290157,127.09,127.01,0.063]
[1740725414585,0.14216157,127.08,127.01,0.063]
[1740725414770,0.14216157,127.08,126.93,0.063]
[1740725414771,20.14216157,126.98,126.93,0.063]
[1740725415069,170.47181043,126.98,126.93,0.063]
[1740725415560,132.82216157,126.98,126.93,0.063]
[1740725415901,42.80902239,127.07,126.93,0.063]
[1740725415902,132.68,127.06,126.98,20.0]
[1740725416464,132.68,127.06,126.98,24.0]
[1740725416779,132.68,127.06,126.99,40.64964886]
[1740725416979,132.68,127.06,127.02,24.0]
[1740725417464,132.68,127.06,127.03,2.0]
[1740725417666,82.8,127.12,127.02,40.64964886]
[1740725417866,82.8,127.11,127.03,2.0]
[1740725418065,82.8,127.1,127.02,20.0]
[1740725418270,0.14216157,127.07,126.99,6.2565]
[1740725418464,0.14216157,127.05,126.99,8.2565]
[1740725418665,0.14216157,127.05,127.01,2.0]
[1740725419187,0.14216157,127.05,126.99,6.2565]
[1740725419486,0.14216157,127.05,126.97,0.063]
[1740725419786,0.14216157,127.05,127.01,2.0]
[1740725420185,0.14216157,127.05,127.0,22.0]
[1740725420381,0.14216157,127.05,126.99,4.0]
[1740725420576,82.8,127.06,127.03,24.0]
[1740725420775,90.6669,127.12,127.03,20.0]
[1740725420971,18.79181043,127.1,126.97,2.063]
[1740725421285,7.8669,127.12,126.97,0.063]
[1740725421286,0.14216157,127.04,126.97,0.063]
[1740725421476,82.8,127.03,126.97,2.063]
[1740725421679,0.14216157,127.02,126.97,0.063]
[1740725421986,0.14216157,127.0,126.97,0.063]
[1740725422188,82.8,127.01,126.97,2.063]
[1740725422365,0.14216157,127.0,126.97,0.063]
[1740725422575,82.8,127.01,126.98,2.0]
[1740725422890,82.94216157,127.0,126.97,0.063]
[1740725423084,0.14216157,126.98,126.97,0.063]
[1740725424087,24.894,127.0,126.97,0.063]
[1740725424268,0.14216157,126.99,126.97,0.063]
[1740725424473,18.79181043,126.99,126.97,0.063]
[1740725424875,0.14216157,126.94,126.93,0.063]
[1740725425271,132.74,127.03,126.94,4.0]
[1740725425484,7.8728,127.02,126.94,2.0]
[1740725425683,132.74,127.03,126.97,2.0]
[1740725425971,18.79181043,127.02,126.93,0.063]
[1740725426585,18.79181043,126.98,126.93,0.063]
[1740725426785,18.79181043,126.94,126.93,0.063]
[1740725427878,18.79181043,126.94,126.89,0.063]
[1740725428074,0.14216157,126.92,126.89,0.063]
[1740725428687,18.79181043,126.92,126.89,0.063]
[1740725428888,0.14216157,126.9,126.89,0.063]
[1740725429605,0.14216157,126.91,126.89,0.063]
[1740725429808,0.14216157,126.91,126.85,0.03]
[1740725430006,46.22594886,126.92,126.85,0.03]
[1740725430007,18.79181043,126.88,126.85,0.03]
[1740725430176,18.79181043,126.86,126.85,0.03]
[1740725430486,18.79181043,126.86,126.76,0.03]
[1740725430690,18.79181043,126.84,126.76,0.03]
[1740725430874,0.14216157,126.82,126.78,2.0]
[1740725431073,0.14216157,126.82,126.77,2.0]
[1740725431274,0.14216157,126.82,126.79,2.0]
[1740725431593,132.84,126.83,126.82,4.0]
[1740725431795,16.92,126.87,126.85,2.0]
[1740725431992,16.92,126.87,126.84,2.0]
[1740725431993,16.92,126.87,126.83,22.0]
[1740725432199,0.14216157,126.86,126.84,2.0]
[1740725432383,0.14216157,126.86,126.83,20.0]
[1740725433412,18.79181043,126.86,126.76,2.03]
[1740725433701,18.79181043,126.86,126.77,2.0]
[1740725433999,16.92,126.87,126.82,2.0]
[1740725434174,16.92,126.87,126.83,20.0]
[1740725434498,16.92,126.87,126.81,2.0]
[1740725434699,16.92,126.87,126.82,2.0]
[1740725435098,0.14216157,126.86,126.83,2.0]
[1740725435294,16.92,126.87,126.85,2.0]
[1740725435591,0.14216157,126.86,126.84,2.0]
[1740725435799,16.92,126.87,126.85,2.0]
[1740725435986,16.92,126.87,126.84,0.03]
[1740725436185,0.14216157,126.86,126.84,0.03]
[1740725436990,16.92,126.87,126.84,2.03]
[1740725437193,16.92,126.87,126.85,2.0]
[1740725437401,16.92,126.87,126.84,0.03]
[1740725437588,0.14216157,126.86,126.84,0.03]
[1740725437790,18.79181043,126.86,126.84,0.03]
[1740725438298,18.79181043,126.86,126.76,0.03]
[1740725438698,18.79181043,126.86,126.77,20.0]
[1740725439000,0.14216157,126.85,126.78,2.0]
[1740725439299,0.14216157,126.85,126.78,4.0]
[1740725439483,0.14216157,126.85,126.77,20.0]
[1740725439687,0.14216157,126.85,126.78,4.0]
[1740725439888,0.14216157,126.85,126.79,2.0]
[1740725440083,99.54,126.87,126.82,2.0]
[1740725440291,0.14216157,126.85,126.81,2.0]
[1740725440493,0.14216157,126.85,126.79,20.0]
[1740725440683,0.14216157,126.85,126.81,2.0]
[1740725440886,82.8,126.86,126.81,2.0]
[1740725441077,82.8,126.86,126.84,2.0]
[1740725441395,82.8,126.86,126.83,20.0]
[1740725441582,82.8,126.86,126.82,2.0]
[1740725441901,0.14216157,126.85,126.81,4.0]
[1740725442098,82.8,126.86,126.84,20.0]
[1740725442397,82.8,126.85,126.84,20.0]
[1740725442577,82.8,126.85,126.81,4.0]
[1740725442779,0.14216157,126.84,126.81,4.0]
[1740725442979,82.8,126.85,126.82,22.0]
[1740725443208,82.8,126.85,126.81,2.0]
[1740725443209,82.8,126.85,126.84,2.0]
[1740725443504,82.8,126.89,126.85,20.0]
[1740725443685,82.8,126.88,126.85,20.0]
[1740725443880,0.14216157,126.86,126.8,2.0]
[1740725444085,0.14216157,126.84,126.79,4.0]
[1740725444301,0.14216157,126.84,126.78,2.0]
[1740725444680,0.14216157,126.84,126.8,4.0]
[1740725444681,99.42216157,126.84,126.8,4.0]
[1740725444881,99.42216157,126.84,126.77,2.0]
[1740725445081,99.42216157,126.84,126.78,2.0]
[1740725445289,99.42216157,126.84,126.77,2.0]
[1740725445702,99.42216157,126.84,126.78,20.0]
[1740725445913,82.8,126.83,126.79,2.0]
[1740725446122,82.8,126.83,126.82,2.0]
[1740725446407,82.8,126.83,126.82,4.0]
[1740725447103,82.8,126.83,126.79,2.0]
[1740725447289,18.79181043,126.82,126.76,4.03]
[1740725447484,35.15181043,126.82,126.77,2.0]
[1740725447686,35.15181043,126.82,126.81,0.03]
[1740725447888,35.15181043,126.82,126.76,0.03]
[1740725449086,18.79181043,126.78,126.76,0.03]
[1740725449285,18.79181043,126.78,126.7,0.03]
[1740725449487,0.14216157,126.76,126.7,0.03]
[1740725449688,18.79181043,126.74,126.7,0.03]
[1740725449905,0.14216157,126.74,126.71,4.0]
[1740725450206,0.14216157,126.74,126.72,4.0]
[1740725450706,0.14216157,126.74,126.7,20.03]
[1740725450906,0.14216157,126.74,126.72,2.0]
[1740725451114,0.14216157,126.74,126.71,4.0]
[1740725451294,0.14216157,126.74,126.72,4.0]
[1740725451485,149.36,126.75,126.73,2.0]
[1740725451697,0.14216157,126.74,126.72,2.0]
[1740725451904,149.36,126.75,126.73,2.0]
[1740725452097,0.14216157,126.74,126.7,0.03]
[1740725452306,18.79181043,126.74,126.7,0.03]
[1740725453495,0.14216157,126.74,126.7,4.03]
[1740725453694,149.36,126.75,126.71,4.0]
[1740725454004,149.36,126.75,126.73,2.0]
[1740725454201,149.36,126.75,126.74,4.0]
[1740725454402,132.98,126.75,126.74,4.0]
[1740725455604,133.12216157,126.75,126.72,4.0]
[1740725455808,133.12216157,126.75,126.74,4.0]
[1740725455809,132.98,126.75,126.74,4.0]
[1740725455993,82.8,126.78,126.77,2.0]
[1740725456394,82.8,126.78,126.77,4.0]
[1740725456697,99.1,126.81,126.79,4.0]
[1740725456895,82.8,126.8,126.79,4.0]
[1740725457090,133.06,126.82,126.81,4.0]
[1740725457402,82.8,126.86,126.85,2.0]
[1740725457598,82.8,126.86,126.85,4.0]
[1740725457900,0.063,126.87,126.86,4.0]
[1740725458102,82.8,126.95,126.9,24.0]
[1740725458298,82.8,126.95,126.94,2.0]
[1740725458500,82.8,126.95,126.94,4.0]
[1740725459007,0.063,126.96,126.95,4.0]
[1740725459391,0.063,126.96,126.95,24.0]
[1740725459601,0.063,127.0,126.99,4.0]
[1740725459802,0.063,127.0,126.99,24.0]
[1740725459997,0.063,127.0,126.99,30.5901]